[Event "4th Tata Steel India Blitz Open 2022"]
[Site "Kolkota"]
[Date "2022.12.04"]
[Round "10.3"]
[White "Nakamura, Hikaru"]
[Black "Nihal Sarin"]
[Result "1-0"]
[ECO "A22"]
[WhiteElo "2768"]
[BlackElo "2670"]
[Annotator "TA"]
[PlyCount "105"]
[EventDate "2022.11.29"]
[EventType "tourn"]
[EventCountry "IND"]
[SourceTitle "playchess.com"]
[Source "ChessBase"]
[SourceQuality "1"]
[TimeControl "180+2"]

{[%evp 9,105,8,11,-8,-9,-4,10,-9,-12,-51,-52,-62,40,7,4,9,0,7,7,10,35,29,30,8,10,0,13,0,6,0,18,14,8,0,0,0,7,0,0,-45,-48,-83,0,-2,14,-8,-12,-9,1,-64,0,-4,0,0,0,0,0,0,0,0,0,0,0,-41,-2,-48,-6,-37,-27,-33,-40,-34,-36,-43,-24,-56,0,0,0,0,0,0,0,0,8,8,8,0,0,0,6099,5197,29971,29970,6620,7310,4134,1839]} 1. c4 {[%emt 0:00:01]} Nf6 {[%emt 0:00:02]} 2. Nc3 {[%emt 0:00:02]} e5 {[%emt 0:00:01]} 3. a3 {[%emt 0:00:02]} c6 {[%emt 0:00:09]} 4. d4 {[%emt 0:00:12]} exd4 {[%emt 0:00:03]} 5. Qxd4 {[%emt 0:00:02]} d5 {[%emt 0:00:03]} 6. e3 {[%emt 0:00:02][%cal Be2e3,Be3e4][%mdl 32] A22: English Opening: 1...e5 2 Nc3 Nf6.} Be6 {[%emt 0:00:08]} 7. cxd5 {[%emt 0:00:02]} Nxd5 {[%emt 0:00:02]} 8. e4 {[%emt 0:00:26] [#] The position is equal.} Qb6 $146 {[%emt 0:00:26]} ({Predecessor:} 8... Nxc3 9. Qxc3 Nd7 10. Be3 Be7 11. Nf3 Qc7 12. h3 Bf6 13. Qc2 O-O 14. Be2 Ne5 {0-1 (67) Rosmuller,A (2112)-Zaragatski,I (2472) Vlissingen 2009}) 9. Nf3 {[%emt 0:00:22]} (9. Qxb6 {simplifies} Nxb6 10. Nf3 N8d7 11. Nd4) 9... Nxc3 {[%emt 0:00:46]} 10. Qxc3 {[%emt 0:00:01]} Nd7 {[%emt 0:00:13]} (10... Bc5 $15 11. Qd2 Na6 12. Bxa6 (12. b4 Nxb4 13. Rb1 a5 $15) 12... Qxa6) 11. Nd4 {[%emt 0:00:22]} (11. Be3 $5 {[%cal Re3b6]} c5 12. Nd2 $14) 11... Nc5 {[%emt 0:00:26] [#] aiming for ...Na4.} 12. Nxe6 {[%emt 0:00:13]} Nxe6 {[%emt 0:00:01]} 13. Bc4 {[%emt 0:00:01]} Bc5 {[%emt 0:00:07]} 14. O-O {[%emt 0:00:08]} Bd4 {[%emt 0:00:02]} 15. Qc2 {[%emt 0:00:04]} O-O {[%emt 0:00:02]} 16. Rb1 {[%emt 0:00:07]} Rad8 {[%emt 0:00:01]} 17. b4 {[%emt 0:00:07]} Qc7 {[%emt 0:00:02]} 18. g3 {[%emt 0:00:04]} Bb6 {[%emt 0:00:04]} 19. Kg2 {[%emt 0:00:02]} Nd4 {[%emt 0:00:02]} 20. Qd3 {[%emt 0:00:22]} Qe7 {[%emt 0:00:02]} 21. Bb2 {[%emt 0:00:09]} Rd7 {[%emt 0:00:11]} 22. Rfe1 {[%emt 0:00:05]} Rfd8 {[%emt 0:00:02]} 23. Qc3 {[%emt 0:00:17]} Ne6 {[%emt 0:00:19]} 24. Bxe6 {[%emt 0:00:04]} fxe6 {[%emt 0:00:01]} 25. Re2 {[%emt 0:00:00] Prevents Rd2.} Bd4 {[%emt 0:00:05]} (25... Qf7 $17) 26. Qc2 {[%emt 0:00:02]} e5 {[%emt 0:00:03]} (26... Bxb2 {simplifies} 27. Rxb2 a6 28. Rb3 Rd4) 27. Bc1 {[%emt 0:00:02]} (27. Rd1 {simplifies} Bxb2 28. Rxd7 Qxd7 29. Qxb2 Qd4 30. Qb3+) 27... Qf7 {[%emt 0:00:02]} 28. Rb3 {[%emt 0:00:01]} (28. a4 {simplifies} Rf8 29. Qb3 a6 30. Qxf7+ Kxf7 31. Rb3) 28... Rf8 {[%emt 0:00:01]} (28... b6 {simplifies} 29. Rf3 Qe6 30. Qb3 Qxb3 31. Rxb3 Rc8) 29. f3 {[%emt 0:00:01]} (29. Be3 $11) 29... Rd6 {[%emt 0:00:02]} ({Black should play} 29... b6 $15) 30. Rd3 {[%emt 0:00:10]} Rf6 {[%emt 0:00:06][%cal Rf6f3]} 31. Qb3 {[%emt 0:00:03]} Qxb3 {[%emt 0:00:14]} 32. Rxb3 {[%emt 0:00:01]} Rd6 {[%emt 0:00:00]} 33. Rd3 {[%emt 0:00:04]} Rfd8 {[%emt 0:00:02]} 34. Bg5 {[%emt 0:00:03]} R8d7 {[%emt 0:00:01]} 35. Red2 {[%emt 0:00:00]} b6 {[%emt 0:00:06]} 36. Rd1 {[%emt 0:00:02]} Kf7 {[%emt 0:00:01]} 37. Kf1 {[%emt 0:00:08]} (37. Be3 $11 {should be considered.}) 37... h6 {[%emt 0:00:07]} (37... c5 $5 {[%cal Rc5c4]} 38. Ke2 c4 $15) 38. Bc1 {[%emt 0:00:07]} c5 {[%emt 0:00:01][%cal Bc6c5,Bc5c4][%mdl 32]} 39. Ke2 {[%emt 0:00:02]} c4 {[%emt 0:00:05]} 40. R3d2 {[%emt 0:00:01]} b5 {[%emt 0:00:01]} 41. f4 {[%emt 0:00:00]} Ke6 {[%emt 0:00:06]} 42. h4 {[%emt 0:00:01]} Bc3 {[%emt 0:00:02]} (42... h5 $15) 43. f5+ {[%emt 0:00:07]} Ke7 {[%emt 0:00:01]} 44. Rxd6 {[%emt 0:00:05]} Rxd6 {[%emt 0:00:01]} 45. Rxd6 {[%emt 0:00:01]} Kxd6 $11 {[%emt 0:00:00][%mdl 4096] Endgame KB-KB} 46. g4 {[%emt 0:00:01]} a5 {[%emt 0:00:07]} 47. bxa5 {[%emt 0:00:07]} Bxa5 {[%emt 0:00:01]} 48. f6 {[%emt 0:00:01]} gxf6 {[%emt 0:00:02][%cal Oh6h5]} 49. Bxh6 {[%emt 0:00:01]} b4 $2 {[%emt 0:00:04][%mdl 8192]} (49... Ke6 $11) 50. axb4 $18 {[%emt 0:00:02]} Bb6 {[%emt 0:00:02]} 51. Be3 {[%emt 0:00:01]} Bd8 {[%emt 0:00:02]} 52. h5 {[%emt 0:00:01] [#] Threatening mate with h6.} Ke6 {[%emt 0:00:02]} 53. b5 {[%emt 0:00:01] Weighted Error Value: White=0.13 (very precise) /Black=0.30} 1-0

[Event "4th Tata Steel India Blitz Open 2022"]
[Site "Kolkota"]
[Date "2022.12.04"]
[Round "10.4"]
[White "So, Wesley"]
[Black "Rameshbabu, Praggnanandhaa"]
[Result "1-0"]
[ECO "A07"]
[WhiteElo "2760"]
[BlackElo "2678"]
[Annotator "TA"]
[PlyCount "71"]
[EventDate "2022.11.29"]
[EventType "tourn"]
[EventCountry "IND"]
[SourceTitle "playchess.com"]
[Source "ChessBase"]
[SourceQuality "1"]
[TimeControl "180+2"]

{[%evp 22,71,14,-8,0,-27,22,18,34,26,14,0,16,0,0,0,0,2,67,66,69,33,58,63,119,124,126,106,224,110,165,183,316,316,375,362,712,713,812,797,1270,1249,1214,1210,1118,1056,5306,5306,2011,1093,1601,794]} 1. b3 {[%emt 0:00:01]} d5 {[%emt 0:00:05]} 2. Nf3 {[%emt 0:00:05]} Bf5 {[%emt 0:00:05]} 3. Bb2 {[%emt 0:00:08]} e6 {[%emt 0:00:01]} 4. d3 {[%emt 0:00:06]} Nf6 {[%emt 0:00:03]} 5. g3 {[%emt 0:00:09]} h6 {[%emt 0:00:01]} 6. Bg2 {[%emt 0:00:01]} Be7 {[%emt 0:00:02]} 7. O-O {[%emt 0:00:08]} O-O {[%emt 0:00:03]} 8. Nbd2 {[%emt 0:00:05]} Bh7 {[%emt 0:00:02]} 9. Ne5 {[%emt 0:00:07]} Nbd7 {[%emt 0:00:08]} 10. e4 {[%emt 0:00:02]} c6 {[%emt 0:00:03]} 11. Qe2 {[%emt 0:00:02]} a5 {[%emt 0:00:13]} 12. a3 {[%emt 0:00:03]} Re8 {[%emt 0:00:09] A07: Réti Opening: New York and Capablanca Systems.} 13. Kh1 {[%emt 0:00:05] [#]} Bf8 $146 {[%emt 0:00:05]} (13... Nxe5 {should be considered.} 14. Bxe5 Bc5) ({Predecessor:} 13... Nxe5 14. Bxe5 Rc8 15. Bb2 dxe4 16. dxe4 b5 17. e5 Nd7 18. Ne4 Qc7 19. f4 Nc5 20. Nf2 {0-1 (49) Lanchava,T (2342)-Pham,L (2304) Khanty-Mansiysk 2010}) 14. f4 $11 {[%emt 0:00:03]} a4 {[%emt 0:00:25] The position is equal.} 15. b4 {[%emt 0:00:02]} c5 {[%emt 0:00:01]} 16. Nxd7 {[%emt 0:00:07]} Nxd7 {[%emt 0:00:03]} 17. b5 {[%emt 0:00:11]} c4 $1 {[%emt 0:00:17]} 18. dxc4 {[%emt 0:00:05]} Rc8 {[%emt 0:00:01]} 19. Rac1 {[%emt 0:00:35]} Nb6 {[%emt 0:00:43]} (19... dxe4 $11 20. Nxe4 (20. Bxe4 Bxe4+ 21. Qxe4 Qc7 $11) 20... Qc7) 20. cxd5 $1 $14 {[%emt 0:00:04]} exd5 {[%emt 0:00:01]} 21. c4 {[%emt 0:00:22]} dxe4 {[%emt 0:00:12] Hoping for ...e3.} 22. f5 $1 $36 {[%emt 0:00:01][%mdl 2048] White is more active.} (22. Bxe4 $2 f5 23. Qe3 (23. c5 $2 Bxc5 24. Rfd1 Qe7 $19) 23... fxe4 $19) (22. Nxe4 $2 Bxe4 23. Bxe4 f5 $19) 22... Qd3 {[%emt 0:00:18]} ({Black should try} 22... Qg5 $14) 23. Qxd3 $16 {[%emt 0:00:02]} exd3 {[%emt 0:00:01]} 24. Bxb7 {[%emt 0:00:01]} Rc7 {[%emt 0:00:10]} (24... Re2 $16) 25. Be4 {[%emt 0:00:36]} (25. Bc6 $18 {is more deadly.} Re2 26. c5 (26. Bd4 Nd7 $16) 26... Bxc5 27. Rxc5 Rxd2 28. Bd4) 25... Bc5 {[%emt 0:00:22]} (25... Nxc4 $2 26. b6 (26. Rxc4 Rxc4 27. Nxc4 Rxe4 $17) (26. Nxc4 Rxe4 27. Nd2 Rxc1 $19) 26... Nxd2 27. bxc7 (27. Bxd3 $2 Rb7 $19) 27... Nxf1 28. Bxd3 $18 (28. c8=R Nxg3+ 29. hxg3 Rxe4 $11)) (25... Rcc8 $16 {is a better defense.}) 26. Rf3 $18 {[%emt 0:00:07][%cal Bf1f3,Bf3d3,Bd3d4][%mdl 32]} Rce7 {[%emt 0:00:08]} (26... Rd7 {might work better.} 27. g4 (27. Bxd3 Be3 $14) (27. Rxd3 Rxd3 28. Bxd3 Rd8 $16) 27... Ree7 28. Rxd3 (28. Bxd3 f6 $16) 28... h5 29. gxh5 Rxd3 30. Bxd3 Rd7) 27. Rxd3 {[%emt 0:00:04]} (27. Bxd3 f6 28. g4 Rd7 $16) 27... f6 {[%emt 0:00:08]} 28. Bd4 {[%emt 0:00:05]} Bxd4 {[%emt 0:00:05]} (28... Nd7 29. g4 Kh8) 29. Rxd4 {[%emt 0:00:01] White is clearly winning.} Rc7 {[%emt 0:00:01]} 30. c5 {[%emt 0:00:03]} Re5 {[%emt 0:00:01]} 31. Bc6 {[%emt 0:00:05]} Nc8 {[%emt 0:00:03]} 32. b6 {[%emt 0:00:07]} Rxc6 {[%emt 0:00:03]} 33. b7 {[%emt 0:00:01]} (33. Rxa4 Nxb6 34. Ra6 Rexc5 35. Rxc5 Rxc5 $17) 33... Rexc5 {[%emt 0:00:02]} 34. Rxc5 {[%emt 0:00:02]} (34. b8=N $2 {too greedy.} Rxc1+ 35. Kg2 R6c2 $19) 34... Rxc5 {[%emt 0:00:01]} 35. Rd8+ {[%emt 0:00:02]} (35. b8=B Bxf5 36. Rxa4 Rc1+ 37. Kg2 Rc2 $17) 35... Kf7 {[%emt 0:00:00]} 36. Rxc8 {[%emt 0:00:03] Weighted Error Value: White=0.14 (very precise) /Black=0.49} ({Stronger than} 36. b8=B Bxf5 37. Rd4 Bh3 $17) (36. g4 $142 g5 37. b8=Q (37. b8=B Rc1+ 38. Kg2 Rd1 $14) 37... Bg8 38. Qb4 Rc1+ {[#]} 39. Nf1 $1 {[%mdl 512]} Ne7 40. Rd7 $1 Rxf1+ 41. Kg2) 1-0

[Event "4th Tata Steel India Blitz Open 2022"]
[Site "Kolkota"]
[Date "2022.12.04"]
[Round "10.5"]
[White "Mamedyarov, Shakhriyar"]
[Black "Gukesh D"]
[Result "1-0"]
[ECO "D37"]
[WhiteElo "2741"]
[BlackElo "2725"]
[Annotator "TA"]
[PlyCount "77"]
[EventDate "2022.11.29"]
[EventType "tourn"]
[EventCountry "IND"]
[SourceTitle "playchess.com"]
[Source "ChessBase"]
[SourceQuality "1"]
[TimeControl "180+2"]

{[%evp 9,77,21,15,14,22,13,12,13,21,19,22,22,44,33,41,16,30,21,101,93,91,78,95,81,158,160,164,170,154,142,193,185,183,183,194,175,195,167,175,174,163,153,234,197,231,218,308,243,415,437,437,425,400,395,898,894,886,872,2996,3743,2071,1929,6511,5622,12839,12837,12837,12837,12834,2199]} 1. d4 {[%emt 0:00:00]} Nf6 {[%emt 0:00:01]} 2. c4 {[%emt 0:00:02]} e6 {[%emt 0:00:01]} 3. Nf3 {[%emt 0:00:03]} d5 {[%emt 0:00:02]} 4. Nc3 {[%emt 0:00:01]} Be7 {[%emt 0:00:01]} 5. Bf4 {[%emt 0:00:05]} O-O {[%emt 0:00:02]} 6. a3 {[%emt 0:00:02] D37: Queen's Gambit Declined: 5 Bf4.} Nbd7 {[%emt 0:00:16]} 7. Nb5 {[%emt 0:00:01]} Ne8 {[%emt 0:00:02]} 8. e3 {[%emt 0:00:02] The position is equal.} c6 {[%emt 0:00:05]} 9. Nc3 {[%emt 0:00:01]} Bd6 {[%emt 0:00:01]} 10. Bg3 {[%emt 0:00:07] [#]} Qe7 $146 {[%emt 0:00:07]} ({Predecessor:} 10... b6 11. Qc2 Ba6 12. b3 Bxg3 13. hxg3 Nef6 14. g4 g6 15. g5 Ne8 16. e4 dxc4 17. Bxc4 Bxc4 18. bxc4 {1-0 (40) Esipenko,A (2701)-Gukesh,D (2563) Tornelo INT 2021}) 11. Qc2 {[%emt 0:00:08]} h6 {[%emt 0:00:17]} 12. O-O-O {[%emt 0:00:13]} b5 {[%emt 0:00:20]} 13. cxb5 {[%emt 0:00:33]} c5 {[%emt 0:00:01]} (13... cxb5 $11 14. Bxb5 Rb8) 14. e4 {[%emt 0:00:03] White has more active pieces. The black rooks are badly placed. White leaves nothing to chance now.} dxe4 {[%emt 0:00:04]} 15. Nxe4 {[%emt 0:00:02]} Bxg3 {[%emt 0:00:08]} 16. hxg3 {[%emt 0:00:01][%cal Rd4c5]} cxd4 {[%emt 0:00:02]} ({Black should try} 16... Bb7) 17. Nxd4 $16 {[%emt 0:00:02]} ({Of course not} 17. Rxd4 $6 Bb7 $11) 17... Bb7 {[%emt 0:00:21]} 18. Nc6 {[%emt 0:00:04] Inhibits Ne5.} Bxc6 {[%emt 0:00:01]} 19. bxc6 {[%emt 0:00:01]} Nb6 {[%emt 0:00:19]} (19... Ndf6 $16 20. Rh4 Qc7 21. Nxf6+ Nxf6) 20. Kb1 $18 {[%emt 0:00:18]} Nd5 {[%emt 0:00:19]} 21. Qc5 $36 {[%emt 0:00:10][%mdl 2048] White is really pushing.} Qc7 {[%emt 0:00:44]} 22. Bc4 {[%emt 0:00:04]} Nef6 {[%emt 0:00:04]} 23. Nxf6+ {[%emt 0:00:24]} Nxf6 {[%emt 0:00:01]} 24. Be2 {[%emt 0:00:19]} Rab8 {[%emt 0:00:02]} 25. Bf3 {[%emt 0:00:01] Inhibits Ne4.} Rb3 {[%emt 0:00:09]} (25... e5 $16 {was necessary.} 26. Rh4 Rfe8) 26. Rd2 {[%emt 0:00:10]} Rfb8 {[%emt 0:00:04]} 27. Rhd1 {[%emt 0:00:02]} Kh7 {[%emt 0:00:10]} (27... R3b6 {is a better defense.} 28. Rc2 a6) 28. Ka2 {[%emt 0:00:03] Threatens to win with Qc2+.} R8b5 $2 {[%emt 0:00:02]} (28... R3b5 29. Qc4 Nd5) 29. Qc2+ {[%emt 0:00:04]} g6 {[%emt 0:00:02]} 30. Qxb3 {[%emt 0:00:02]} Rxb3 {[%emt 0:00:02]} 31. Kxb3 {[%emt 0:00:01]} e5 $2 {[%emt 0:00:07] [#]} (31... h5 32. Rc2 e5) 32. Rd7 $1 {[%emt 0:00:13] White is clearly winning.} Qb6+ {[%emt 0:00:01]} 33. Ka2 {[%emt 0:00:01]} Nxd7 {[%emt 0:00:02]} 34. cxd7 {[%emt 0:00:01] KQ-KRB} ({Not} 34. Rxd7 Qb5 $18) 34... Qd8 {[%emt 0:00:02]} 35. Bc6 {[%emt 0:00:04]} f5 {[%emt 0:00:04]} 36. Ba4 {[%emt 0:00:04] [#] Rc1 is the strong threat.} e4 {[%emt 0:00:05]} 37. Rc1 {[%emt 0:00:00] White wants to mate with Rc8.} Qg8+ {[%emt 0:00:01]} 38. Ka1 {[%emt 0:00:01]} Qd5 {[%emt 0:00:01]} 39. Rc8 {[%emt 0:00:01] Weighted Error Value: White=0.09 (flawless) /Black=0.38} (39. Rd1 $142 Qa5 40. d8=Q (40. d8=B $2 {perishes.} Qxa4 41. Rd2 Qc4 $19) 40... Qxd8 41. Rxd8) 1-0

[Event "4th Tata Steel India Blitz Open 2022"]
[Site "Kolkota"]
[Date "2022.12.04"]
[Round "11.1"]
[White "Abdusattorov, Nodirbek"]
[Black "Nihal Sarin"]
[Result "1-0"]
[ECO "B08"]
[WhiteElo "2713"]
[BlackElo "2670"]
[Annotator "TA"]
[PlyCount "143"]
[EventDate "2022.11.29"]
[EventType "tourn"]
[EventCountry "IND"]
[SourceTitle "playchess.com"]
[Source "ChessBase"]
[SourceQuality "1"]
[TimeControl "180+2"]

{[%evp 17,143,0,19,31,29,16,20,28,30,30,29,29,35,28,40,6,9,6,9,0,0,0,0,0,0,0,0,0,0,0,0,0,0,0,0,0,0,0,0,0,0,0,0,0,0,0,0,0,0,0,0,0,0,0,0,0,0,0,0,0,0,0,0,0,0,0,0,0,0,0,0,0,0,0,0,0,0,0,0,0,0,0,0,0,0,0,0,0,1303,1304,1284,1287,1237,1239,1010,1095,697,591,29990,29991,29991,2648,1979,1705,1312,1247,29979,0,29974,29974,29984,29985,29992,29993,29993,29987,29987,29988,29990,29991,29991,29990,29990,29991,29991,29989,29990,29990]} 1. e4 {[%emt 0:00:02]} g6 {[%emt 0:00:00]} 2. d4 {[%emt 0:00:01]} Bg7 {[%emt 0:00:01]} 3. Nc3 {[%emt 0:00:02]} d6 {[%emt 0:00:01]} 4. Nf3 {[%emt 0:00:08]} Nc6 {[%emt 0:00:01]} 5. Be2 {[%emt 0:00:02]} a6 {[%emt 0:00:03]} 6. O-O {[%emt 0:00:07]} Nf6 {[%emt 0:00:01]} 7. h3 {[%emt 0:00:01]} O-O {[%emt 0:00:01]} 8. a4 {[%emt 0:00:04]} e5 {[%emt 0:00:27]} 9. dxe5 {[%emt 0:00:11]} Nxe5 {[%emt 0:00:09]} 10. Nxe5 {[%emt 0:00:05] B08: Pirc Defence: Classical System.} dxe5 {[%emt 0:00:01]} 11. Be3 {[%emt 0:00:21]} Qe7 {[%emt 0:00:01]} 12. Nd5 {[%emt 0:00:11] The position is equal.} Nxd5 {[%emt 0:00:03]} 13. Qxd5 {[%emt 0:00:01]} Rd8 {[%emt 0:00:09]} 14. Qb3 {[%emt 0:00:01]} b6 {[%emt 0:00:42]} 15. Rfd1 {[%emt 0:00:21]} Bb7 {[%emt 0:00:03]} 16. f3 {[%emt 0:00:16] [#]} a5 $146 {[%emt 0:00:02]} ({Predecessor:} 16... h5 17. Bc4 Bf6 18. c3 Kg7 19. Rxd8 Rxd8 20. Rd1 Rd7 21. Qc2 h4 22. Qe2 a5 {½-½ (57) Kim,A (2464)-Sanal,V (2549) Moscow 2019}) 17. Bc4 {[%emt 0:00:04]} Bf6 {[%emt 0:00:03]} 18. c3 {[%emt 0:00:34]} Kg7 {[%emt 0:00:13]} 19. Rxd8 {[%emt 0:00:13]} Rxd8 {[%emt 0:00:01]} 20. Rd1 {[%emt 0:00:01]} Rxd1+ {[%emt 0:00:01]} 21. Qxd1 {[%emt 0:00:01]} Bc6 {[%emt 0:00:01]} 22. Bb5 {[%emt 0:00:18]} Bxb5 {[%emt 0:00:23]} 23. axb5 $11 {[%emt 0:00:01][%mdl 4096] Endgame KQB-KQB} Bg5 {[%emt 0:00:01]} 24. Bf2 {[%emt 0:00:02]} Qe6 {[%emt 0:00:01]} 25. b3 {[%emt 0:00:08]} h5 {[%emt 0:00:06]} 26. h4 {[%emt 0:00:01]} Be7 {[%emt 0:00:01]} 27. c4 {[%emt 0:00:04]} a4 {[%emt 0:00:12]} 28. bxa4 {[%emt 0:00:06] Strongly threatening Qd5.} Qxc4 {[%emt 0:00:01]} 29. Kh2 {[%emt 0:00:04]} Qa2 {[%emt 0:00:20]} 30. Bg3 {[%emt 0:00:10]} Bd6 {[%emt 0:00:00]} 31. Be1 {[%emt 0:00:06]} Bc5 {[%emt 0:00:44]} 32. Bc3 {[%emt 0:00:05]} Qe6 {[%emt 0:00:03]} 33. f4 {[%emt 0:00:05][%cal Od1d5]} Bd6 {[%emt 0:00:04]} 34. Qf3 {[%emt 0:00:09]} f6 {[%emt 0:00:03]} 35. f5 {[%emt 0:00:02]} (35. fxe5 {simplifies} Bxe5+ 36. Bxe5 Qxe5+ 37. g3) 35... gxf5 {[%emt 0:00:03]} 36. Qxf5 {[%emt 0:00:01]} Qc4 {[%emt 0:00:05][%csl LRa4,LRc3]} (36... Qxf5 37. exf5 Kf8 38. g4 $18) 37. Be1 {[%emt 0:00:01]} Qe2 {[%emt 0:00:01]} 38. Qd7+ {[%emt 0:00:03]} Kh6 {[%emt 0:00:02]} 39. Qf5 {[%emt 0:00:02]} Kg7 {[%emt 0:00:03]} 40. Bg3 {[%emt 0:00:02]} Bc5 {[%emt 0:00:02]} 41. Qd7+ {[%emt 0:00:01]} Kg6 {[%emt 0:00:00]} 42. Qe8+ {[%emt 0:00:01]} Kg7 {[%emt 0:00:01]} 43. Qd7+ {[%emt 0:00:02]} Kg6 {[%emt 0:00:02]} 44. Qf5+ {[%emt 0:00:01]} Kg7 {[%emt 0:00:02]} 45. Kh3 {[%emt 0:00:01]} Qd1 {[%emt 0:00:02]} 46. Bh2 {[%emt 0:00:05]} Qd3+ {[%emt 0:00:03]} 47. Qf3 {[%emt 0:00:04]} Qd7+ {[%emt 0:00:03]} 48. g4 {[%emt 0:00:00]} Qe6 {[%emt 0:00:03]} 49. Bg3 {[%emt 0:00:02]} Kf7 {[%emt 0:00:01]} 50. Qf5 {[%emt 0:00:02] Black must now prevent Qxe6+.} hxg4+ $1 {[%emt 0:00:01]} 51. Kxg4 {[%emt 0:00:01] Qxe6+ is the strong threat.} Qc4 {[%emt 0:00:01]} 52. h5 {[%emt 0:00:04][%cal Bh4h5,Bh5h6][%mdl 32]} (52. Bxe5 $5 Qe2+ $8 53. Kh3 Qe3+ 54. Bg3 $11) 52... Qxa4 $2 {[%emt 0:00:01][%mdl 8192] Black is now going downhill.} (52... Qe2+ $11 53. Qf3 Qd2) 53. Qg6+ $1 $18 {[%emt 0:00:02]} (53. Bxe5 Qd1+ 54. Kg3 Qe1+ 55. Kg4 Qd1+ 56. Kh3 Qh1+ 57. Bh2 Bd6 58. Qh7+ Ke8 59. Qg6+ Ke7 60. Qh7+ Ke6 61. Qg8+ Ke7 62. Qg7+ Ke8 63. Qg8+ Ke7 $11) 53... Ke6 {[%emt 0:00:02]} 54. Qe8+ {[%emt 0:00:00]} Be7 {[%emt 0:00:01]} 55. Qg8+ {[%emt 0:00:02]} Kd7 {[%emt 0:00:01]} 56. Qd5+ {[%emt 0:00:01]} Ke8 {[%emt 0:00:02]} 57. h6 {[%emt 0:00:00] h7 would kill now.} f5+ {[%emt 0:00:07]} 58. Kxf5 {[%emt 0:00:02]} Qa3 {[%emt 0:00:02] [#]} 59. Qg8+ {[%emt 0:00:05]} (59. Qxe5 Qf3+ 60. Qf4 (60. Bf4 $2 Qh5+ $19) 60... Qh5+ 61. Ke6 Bd6 $11) (59. Ke6 $142 $1 Qd6+ 60. Qxd6 cxd6 61. h7 Bf6 62. Kxf6 Kd7 63. h8=Q Kc7 64. Qa8 Kd7 65. Qc6+ Kd8 66. Ke6 d5 67. Bh4#) 59... Kd7 {[%emt 0:00:01]} 60. Qe6+ {[%emt 0:00:03]} (60. Bxe5 Qh3+ 61. Qg4 (61. Kf4 Qf1+ 62. Kg4 Qe2+ 63. Kf5 Qh5+ 64. Kf4 Qxh6+ 65. Kf5 Qh5+ 66. Kf4 Qh6+ 67. Kf5 Qh5+ 68. Kf4 Qh6+ $11) 61... Qxh6 $11) 60... Ke8 {[%emt 0:00:01]} 61. Qg6+ {[%emt 0:00:02]} (61. Bxe5 $2 {is the wrong capture.} Qh3+ 62. Kf4 Qxe6 $19) (61. Qxe5 Qf3+ 62. Qf4 (62. Bf4 $2 Qh5+ $19) 62... Qh5+ 63. Ke6 Bd6 $11) 61... Kd7 {[%emt 0:00:01]} 62. Bxe5 $2 {[%emt 0:00:01]} (62. Qc6+ {mates} Kd8 63. Bxe5 Qf3+ 64. Kg6 Qg2+ 65. Kh7 Bc5 66. Qe6 Be7 {[#]} 67. Bxc7+ $1 {[%mdl 512]} Ke8 68. Bd6 (68. Qxb6 {is a self mate.} Kf7)) 62... Qf3+ $2 {[%emt 0:00:02][%mdl 8192]} (62... Qh3+ $11 63. Kf4 Qh2+ 64. Kf5 Qh3+ 65. Qg4 (65. Kf4 Qh2+ 66. Kf5 Qh3+ $11) 65... Qxh6) 63. Bf4 {[%emt 0:00:02] White mates.} Bd6 {[%emt 0:00:01]} 64. Qg4 {[%emt 0:00:04]} Qh1 {[%emt 0:00:02]} 65. Kg6+ {[%emt 0:00:01]} Kd8 {[%emt 0:00:05]} 66. e5 {[%emt 0:00:01]} Qe4+ {[%emt 0:00:03]} 67. Qf5 {[%emt 0:00:01]} Qg2+ {[%emt 0:00:01]} 68. Bg5+ {[%emt 0:00:01]} Be7 {[%emt 0:00:01]} 69. Qf8+ {[%emt 0:00:00]} Kd7 {[%emt 0:00:00]} 70. Qxe7+ {[%emt 0:00:01]} Kc8 {[%emt 0:00:01]} 71. Qe8+ {[%emt 0:00:02]} Kb7 {[%emt 0:00:00]} 72. Qc6+ {[%emt 0:00:01] Weighted Error Value: White=0.02 (flawless) /Black=0.17 (very precise)} 1-0